[Event "Panchenko Memorial 2019"]
[Site "Chelyabinsk"]
[Date "2019.09.13"]
[Round "5.2"]
[White "Shaposhnikov, Evgeny"]
[Black "Sivuk, Vitaly"]
[Result "1/2-1/2"]
[ECO "D02"]
[WhiteElo "2572"]
[BlackElo "2559"]
[Annotator "ChessBase"]
[PlyCount "108"]
[EventDate "2019.09.09"]
[EventType "swiss"]
[EventCountry "RUS"]
[SourceTitle "playchess.com"]
[Source "ChessBase"]
[SourceQuality "1"]
[TimeControl "5400+30"]

1. Nf3 {[%emt 0:00:00]} d5 {[%emt 0:00:00]} 2. d4 {[%emt 0:00:00]} Nf6 {[%emt 0:00:07]} 3. Bf4 {[%emt 0:00:00]} c5 {[%emt 0:02:00]} 4. e3 {[%emt 0:00:00]} Nc6 {[%emt 0:01:31]} 5. c3 {[%emt 0:03:30]} Qb6 {[%emt 0:02:55]} 6. Qb3 {[%emt 0:01:17]} c4 {[%emt 0:00:13]} 7. Qc2 {[%emt 0:00:07]} Bf5 {[%emt 0:00:19]} 8. Qc1 {[%emt 0:00:08]} Nh5 {[%emt 0:04:22]} 9. Be5 {[%emt 0:01:39]} f6 {[%emt 0:09:45]} 10. Bg3 {[%emt 0:00:06]} g5 {[%emt 0:00:26]} 11. Nbd2 {[%emt 0:01:41]} e6 {[%emt 0:02:21]} 12. Be2 {[%emt 0:04:28]} Bg6 {[%emt 0:00:23]} 13. b3 {[%emt 0:01:39]} cxb3 {[%emt 0:00:54]} 14. axb3 {[%emt 0:03:10]} Rc8 {[%emt 0:00:17]} 15. c4 {[%emt 0:07:17]} Nxg3 {[%emt 0:05:22]} 16. hxg3 {[%emt 0:00:27]} Bb4 {[%emt 0:01:17]} 17. Bd1 {[%emt 0:07:23]} Kf7 {[%emt 0:05:46]} 18. g4 {[%emt 0:14:58]} e5 {[%emt 0:09:52]} 19. dxe5 {[%emt 0:02:19]} Nxe5 {[%emt 0:04:52]} 20. Nxe5+ {[%emt 0:03:51]} fxe5 {[%emt 0:01:50]} 21. O-O {[%emt 0:04:57]} Bd3 {[%emt 0:00:35]} 22. Nf3 {[%emt 0:08:41]} Bxf1 {[%emt 0:01:49]} 23. Kxf1 {[%emt 0:00:14]} Kg7 {[%emt 0:23:38]} 24. Nxe5 {[%emt 0:01:22]} Qf6 {[%emt 0:09:52]} 25. Nd3 {[%emt 0:01:36]} a5 {[%emt 0:01:58]} 26. Nxb4 {[%emt 0:12:05]} axb4 {[%emt 0:00:06]} 27. Ra7 {[%emt 0:03:23]} Rc7 {[%emt 0:00:15]} 28. c5 {[%emt 0:01:00]} Rf8 {[%emt 0:03:37]} 29. Qd2 {[%emt 0:01:19]} Rff7 {[%emt 0:00:26]} 30. Ra5 {[%emt 0:01:38]} Rcd7 {[%emt 0:05:05]} 31. Bf3 {[%emt 0:07:13]} d4 {[%emt 0:00:13]} 32. e4 {[%emt 0:00:09]} d3 {[%emt 0:00:35]} 33. c6 {[%emt 0:00:33]} bxc6 {[%emt 0:00:19]} 34. Rxg5+ {[%emt 0:00:45]} Kh8 {[%emt 0:00:08]} 35. e5 {[%emt 0:00:28]} Qf4 {[%emt 0:00:40]} 36. Qxf4 {[%emt 0:02:07]} Rxf4 {[%emt 0:00:02]} 37. e6 {[%emt 0:03:06]} Re7 {[%emt 0:00:10]} 38. Ke1 {[%emt 0:01:07]} Rxe6+ {[%emt 0:00:09]} 39. Kd2 {[%emt 0:00:00]} Rd6 {[%emt 0:00:31]} 40. Re5 {[%emt 0:00:50]} Rf7 {[%emt 0:00:31]} 41. Re3 {[%emt 0:00:48]} c5 {[%emt 0:00:37]} 42. Rxd3 {[%emt 0:01:51]} Rfd7 {[%emt 0:00:08]} 43. Be4 {[%emt 0:00:10]} Rxd3+ {[%emt 0:02:10]} 44. Bxd3 {[%emt 0:00:02]} Rd4 {[%emt 0:00:24]} 45. f3 {[%emt 0:00:26]} h6 {[%emt 0:00:15]} 46. Ke3 {[%emt 0:00:12]} Kg7 {[%emt 0:00:05]} 47. f4 {[%emt 0:00:22]} Kf6 {[%emt 0:00:05]} 48. Bc4 {[%emt 0:00:07]} Rd1 {[%emt 0:00:09]} 49. Ke4 {[%emt 0:00:21]} Rd2 {[%emt 0:01:19]} 50. g3 {[%emt 0:00:06]} Rd1 {[%emt 0:00:24]} 51. Ke3 {[%emt 0:00:11]} Rg1 {[%emt 0:00:30]} 52. Kf3 {[%emt 0:00:28]} Rc1 {[%emt 0:00:29]} 53. Ke4 {[%emt 0:00:06]} Rd1 54. Ke3 Rd4 1/2-1/2

[Event "Panchenko Memorial 2019"]
[Site "Chelyabinsk"]
[Date "2019.09.13"]
[Round "5.3"]
[White "Stupak, Kirill"]
[Black "Tologontegin, Semetey"]
[Result "1/2-1/2"]
[ECO "A42"]
[WhiteElo "2551"]
[BlackElo "2369"]
[Annotator "ChessBase"]
[PlyCount "144"]
[EventDate "2019.09.09"]
[EventType "swiss"]
[EventCountry "RUS"]
[SourceTitle "playchess.com"]
[Source "ChessBase"]
[SourceQuality "1"]
[TimeControl "5400+30"]

1. d4 {[%emt 0:05:45]} g6 {[%emt 0:00:00]} 2. c4 {[%emt 0:00:24]} Bg7 {[%emt 0:00:00]} 3. Nc3 {[%emt 0:00:29]} d6 {[%emt 0:00:00]} 4. e4 {[%emt 0:02:49]} e5 {[%emt 0:01:04]} 5. Nf3 {[%emt 0:01:28]} Bg4 {[%emt 0:01:29]} 6. d5 {[%emt 0:00:47]} Nd7 {[%emt 0:04:41]} 7. Be2 {[%emt 0:02:56]} Bxf3 {[%emt 0:07:01]} 8. Bxf3 {[%emt 0:00:05]} h5 {[%emt 0:00:05]} 9. O-O {[%emt 0:04:43]} Bh6 {[%emt 0:25:37]} 10. g3 {[%emt 0:14:02]} h4 {[%emt 0:04:08]} 11. Bg2 {[%emt 0:00:35]} Bxc1 {[%emt 0:00:36]} 12. Rxc1 {[%emt 0:01:54]} Ngf6 {[%emt 0:06:05]} 13. b4 {[%emt 0:06:33]} Kf8 {[%emt 0:04:22]} 14. Na4 {[%emt 0:07:59]} a5 {[%emt 0:02:48]} 15. a3 {[%emt 0:00:14]} axb4 {[%emt 0:00:54]} 16. axb4 {[%emt 0:00:10]} b5 {[%emt 0:15:30]} 17. cxb5 {[%emt 0:00:36]} Qb8 {[%emt 0:00:04]} 18. Ra1 {[%emt 0:07:53]} Kg7 {[%emt 0:03:42]} 19. Qe2 {[%emt 0:01:06]} Ra7 {[%emt 0:03:38]} 20. Nc3 {[%emt 0:00:52]} Rxa1 {[%emt 0:06:32]} 21. Rxa1 {[%emt 0:00:07]} Qb6 {[%emt 0:00:01]} 22. Qd2 {[%emt 0:11:16]} hxg3 {[%emt 0:03:00]} 23. hxg3 {[%emt 0:00:04]} Qb7 {[%emt 0:05:26]} 24. Qd3 {[%emt 0:04:21]} Ra8 {[%emt 0:01:00]} 25. Ra5 {[%emt 0:02:16]} Ra7 {[%emt 0:00:54]} 26. Qc4 {[%emt 0:03:30]} Nb6 {[%emt 0:01:42]} 27. Qa2 {[%emt 0:04:56]} Ra8 {[%emt 0:00:05]} 28. Nb1 {[%emt 0:01:27]} Qc8 {[%emt 0:00:57]} 29. Qe2 {[%emt 0:03:18]} Qg4 {[%emt 0:01:51]} 30. Qxg4 {[%emt 0:00:58]} Nxg4 {[%emt 0:00:03]} 31. Bh3 {[%emt 0:00:13]} Nf6 {[%emt 0:00:04]} 32. Nd2 {[%emt 0:00:14]} Kf8 {[%emt 0:00:29]} 33. f3 {[%emt 0:01:50]} Ke7 {[%emt 0:00:07]} 34. Kf2 {[%emt 0:00:07]} Rh8 {[%emt 0:02:13]} 35. Kg2 {[%emt 0:00:14]} Ra8 {[%emt 0:00:04]} 36. f4 {[%emt 0:01:38]} Ne8 {[%emt 0:00:21]} 37. Kf3 {[%emt 0:03:37]} Kd8 {[%emt 0:00:29]} 38. Ra6 {[%emt 0:00:40]} Ke7 {[%emt 0:00:31]} 39. Nb3 {[%emt 0:00:39]} Kf6 {[%emt 0:00:34]} 40. Na5 {[%emt 0:00:51]} g5 {[%emt 0:00:12]} 41. Nc6 {[%emt 0:02:29]} gxf4 {[%emt 0:00:04]} 42. gxf4 {[%emt 0:00:05]} exf4 {[%emt 0:00:57]} 43. Kxf4 {[%emt 0:00:07]} Ng7 {[%emt 0:00:29]} 44. Bg4 {[%emt 0:00:52]} Rh8 {[%emt 0:00:14]} 45. e5+ {[%emt 0:01:58]} dxe5+ {[%emt 0:00:11]} 46. Nxe5 {[%emt 0:00:01]} Nh5+ {[%emt 0:00:38]} 47. Bxh5 {[%emt 0:03:12]} Rxh5 {[%emt 0:00:03]} 48. Nd7+ {[%emt 0:00:51]} Ke7 {[%emt 0:00:20]} 49. Nxb6 {[%emt 0:00:05]} cxb6 {[%emt 0:00:02]} 50. Rxb6 {[%emt 0:00:06]} Rxd5 {[%emt 0:00:44]} 51. Ke4 {[%emt 0:00:01]} Rd1 {[%emt 0:02:44]} 52. Rc6 {[%emt 0:00:17]} Kd7 {[%emt 0:00:20]} 53. Ke5 {[%emt 0:00:27]} f5 {[%emt 0:00:43]} 54. Rc3 {[%emt 0:01:34]} Rd6 {[%emt 0:00:25]} 55. Rc4 {[%emt 0:00:01]} Rb6 {[%emt 0:00:32]} 56. Rc5 {[%emt 0:00:16]} Rh6 {[%emt 0:00:09]} 57. Rc4 {[%emt 0:01:53]} Rb6 {[%emt 0:00:09]} 58. Kxf5 {[%emt 0:00:27]} Rxb5+ {[%emt 0:00:09]} 59. Ke4 {[%emt 0:00:02]} Kd6 {[%emt 0:00:43]} 60. Kd3 {[%emt 0:00:23]} Rb7 {[%emt 0:00:58]} 61. Rh4 {[%emt 0:00:14]} Kc6 {[%emt 0:00:34]} 62. Kc4 {[%emt 0:00:10]} Rg7 {[%emt 0:00:12]} 63. Rh6+ {[%emt 0:00:06]} Kb7 {[%emt 0:00:10]} 64. Kb5 {[%emt 0:00:12]} Rg5+ {[%emt 0:00:05]} 65. Ka4 {[%emt 0:00:04]} Rf5 {[%emt 0:00:13]} 66. b5 {[%emt 0:00:07]} Rf1 {[%emt 0:00:07]} 67. Rh7+ {[%emt 0:00:02]} Kb6 {[%emt 0:00:05]} 68. Rh6+ {[%emt 0:00:04]} Kb7 {[%emt 0:00:02]} 69. b6 {[%emt 0:00:04]} Ra1+ {[%emt 0:00:07]} 70. Kb5 {[%emt 0:00:04]} Rb1+ {[%emt 0:00:02]} 71. Kc4 {[%emt 0:00:06]} Rxb6 {[%emt 0:00:04]} 72. Rxb6+ {[%emt 0:00:04]} Kxb6 {[%emt 0:00:01]} 1/2-1/2

[Event "Panchenko Memorial 2019"]
[Site "Chelyabinsk"]
[Date "2019.09.13"]
[Round "5.4"]
[White "Khusenkhojaev, Muhammad"]
[Black "Zhigalko, Andrey"]
[Result "0-1"]
[ECO "D70"]
[WhiteElo "2450"]
[BlackElo "2539"]
[Annotator "ChessBase"]
[PlyCount "96"]
[EventDate "2019.09.09"]
[EventType "swiss"]
[EventCountry "RUS"]
[SourceTitle "playchess.com"]
[Source "ChessBase"]
[SourceQuality "1"]
[TimeControl "5400+30"]

1. d4 {[%emt 0:00:48]} Nf6 {[%emt 0:00:00]} 2. c4 {[%emt 0:00:05]} g6 {[%emt 0:00:00]} 3. Nf3 {[%emt 0:00:10]} Bg7 {[%emt 0:00:00]} 4. g3 {[%emt 0:00:03]} d5 {[%emt 0:00:00]} 5. cxd5 {[%emt 0:00:07]} Nxd5 {[%emt 0:00:01]} 6. Bg2 {[%emt 0:00:05]} Nb6 {[%emt 0:00:05]} 7. Nc3 {[%emt 0:00:06]} Nc6 {[%emt 0:00:06]} 8. e3 {[%emt 0:00:06]} e5 {[%emt 0:00:09]} 9. d5 {[%emt 0:00:10]} Ne7 {[%emt 0:00:08]} 10. e4 {[%emt 0:00:04]} c6 {[%emt 0:00:12]} 11. d6 {[%emt 0:00:15]} Ng8 {[%emt 0:00:07]} 12. b3 {[%emt 0:00:41]} f6 {[%emt 0:06:30]} 13. O-O {[%emt 0:01:37]} Nh6 {[%emt 0:00:14]} 14. Ba3 {[%emt 0:00:06]} Nf7 {[%emt 0:00:43]} 15. Qd3 {[%emt 0:01:19]} Bf8 {[%emt 0:01:51]} 16. Rad1 {[%emt 0:06:18]} Bd7 {[%emt 0:05:09]} 17. Na4 {[%emt 0:22:27]} Nc8 {[%emt 0:01:49]} 18. Nc5 {[%emt 0:01:57]} Ncxd6 {[%emt 0:00:24]} 19. Nxd7 {[%emt 0:01:36]} Qxd7 {[%emt 0:00:08]} 20. Nh4 {[%emt 0:00:54]} Qc7 {[%emt 0:22:23]} 21. f4 {[%emt 0:05:59]} Rd8 {[%emt 0:09:29]} 22. Qf3 {[%emt 0:03:59]} Nb5 {[%emt 0:09:39]} 23. Rxd8+ {[%emt 0:00:16]} Qxd8 {[%emt 0:02:14]} 24. Bb2 {[%emt 0:00:28]} Ba3 {[%emt 0:18:46]} 25. Bxa3 {[%emt 0:01:07]} Nxa3 {[%emt 0:00:02]} 26. Bh3 {[%emt 0:10:18]} Nc2 {[%emt 0:05:04]} 27. fxe5 {[%emt 0:02:51]} Ng5 {[%emt 0:01:52]} 28. Qc3 {[%emt 0:01:09]} Qd4+ {[%emt 0:03:21]} 29. Qxd4 {[%emt 0:00:05]} Nxd4 {[%emt 0:00:02]} 30. Bc8 {[%emt 0:00:29]} fxe5 {[%emt 0:02:18]} 31. Bxb7 {[%emt 0:00:05]} Ke7 {[%emt 0:00:34]} 32. Kg2 {[%emt 0:03:43]} Rf8 {[%emt 0:04:11]} 33. Re1 {[%emt 0:00:37]} a6 {[%emt 0:00:34]} 34. Ra1 {[%emt 0:04:54]} a5 {[%emt 0:01:05]} 35. Re1 {[%emt 0:02:28]} Kd6 {[%emt 0:02:50]} 36. Ba6 {[%emt 0:01:03]} a4 {[%emt 0:01:28]} 37. b4 {[%emt 0:01:31]} a3 {[%emt 0:01:29]} 38. Bd3 {[%emt 0:00:32]} Rb8 {[%emt 0:01:32]} 39. Rb1 {[%emt 0:00:04]} Rf8 {[%emt 0:01:02]} 40. Rc1 {[%emt 0:01:32]} Rb8 {[%emt 0:01:06]} 41. Rb1 {[%emt 0:00:04]} Kc7 {[%emt 0:00:25]} 42. Kf2 {[%emt 0:00:15]} c5 {[%emt 0:00:53]} 43. bxc5 {[%emt 0:04:33]} Rb2+ {[%emt 0:00:58]} 44. Rxb2 {[%emt 0:01:16]} axb2 {[%emt 0:00:01]} 45. Ke3 {[%emt 0:10:03]} Nb5 {[%emt 0:00:23]} 46. Nf3 {[%emt 0:01:03]} Nxf3 {[%emt 0:00:29]} 47. Kxf3 {[%emt 0:00:05]} Na3 {[%emt 0:01:02]} 48. Kg4 {[%emt 0:00:33]} Kc6 {[%emt 0:00:21]} 0-1

[Event "Panchenko Memorial 2019"]
[Site "Chelyabinsk"]
[Date "2019.09.13"]
[Round "5.5"]
[White "Kotsur, Pavel"]
[Black "Bezgodov, Alexei"]
[Result "1/2-1/2"]
[ECO "C42"]
[WhiteElo "2528"]
[BlackElo "2453"]
[Annotator "ChessBase"]
[PlyCount "66"]
[EventDate "2019.09.09"]
[EventType "swiss"]
[EventCountry "RUS"]
[SourceTitle "playchess.com"]
[Source "ChessBase"]
[SourceQuality "1"]
[TimeControl "5400+30"]

1. e4 {[%emt 0:01:34]} e5 {[%emt 0:00:00]} 2. Nf3 {[%emt 0:00:06]} Nf6 {[%emt 0:00:13]} 3. Nxe5 {[%emt 0:00:48]} d6 {[%emt 0:00:17]} 4. Nf3 {[%emt 0:00:14]} Nxe4 {[%emt 0:00:06]} 5. Nc3 {[%emt 0:03:15]} Nxc3 {[%emt 0:12:36]} 6. dxc3 {[%emt 0:00:44]} Be7 {[%emt 0:00:23]} 7. Be3 {[%emt 0:01:37]} Nc6 {[%emt 0:01:11]} 8. Qd2 {[%emt 0:01:24]} Be6 {[%emt 0:00:30]} 9. O-O-O {[%emt 0:05:02]} Qd7 {[%emt 0:00:11]} 10. h3 {[%emt 0:21:05]} O-O-O {[%emt 0:26:20]} 11. Nd4 {[%emt 0:13:35]} Bf6 {[%emt 0:01:58]} 12. Bb5 {[%emt 0:13:09]} Bd5 {[%emt 0:04:16]} 13. f3 {[%emt 0:00:13]} a6 {[%emt 0:01:41]} 14. Bxc6 {[%emt 0:04:36]} Bxc6 {[%emt 0:00:29]} 15. Bg5 {[%emt 0:00:05]} Bxg5 {[%emt 0:00:54]} 16. Qxg5 {[%emt 0:00:04]} f6 {[%emt 0:00:52]} 17. Qg4 {[%emt 0:07:11]} Bd5 {[%emt 0:04:44]} 18. Rhe1 {[%emt 0:01:34]} Qxg4 {[%emt 0:21:54]} 19. hxg4 {[%emt 0:00:05]} g6 {[%emt 0:00:26]} 20. Ne6 {[%emt 0:02:41]} Bxe6 {[%emt 0:00:04]} 21. Rxe6 {[%emt 0:00:03]} Rhf8 {[%emt 0:01:01]} 22. Rde1 {[%emt 0:03:48]} Rf7 {[%emt 0:00:21]} 23. Re7 {[%emt 0:00:38]} Rdf8 {[%emt 0:00:43]} 24. Rxf7 {[%emt 0:02:23]} Rxf7 {[%emt 0:00:03]} 25. Re8+ {[%emt 0:00:05]} Kd7 {[%emt 0:00:07]} 26. Rb8 {[%emt 0:00:02]} b6 {[%emt 0:01:39]} 27. Kd2 {[%emt 0:01:58]} f5 {[%emt 0:04:58]} 28. gxf5 {[%emt 0:03:06]} Rxf5 {[%emt 0:00:15]} 29. Ke3 {[%emt 0:00:08]} Re5+ {[%emt 0:00:59]} 30. Kf2 {[%emt 0:00:14]} Rd5 {[%emt 0:00:17]} 31. Ke2 {[%emt 0:00:11]} Re5+ {[%emt 0:00:06]} 32. Kf2 {[%emt 0:00:02]} Rd5 {[%emt 0:00:05]} 33. Ke2 {[%emt 0:00:04]} Re5+ {[%emt 0:00:06]} 1/2-1/2

[Event "Panchenko Memorial 2019"]
[Site "Chelyabinsk"]
[Date "2019.09.13"]
[Round "5.6"]
[White "Meister, Jakob"]
[Black "Zakhartsov, Vladimir"]
[Result "1/2-1/2"]
[ECO "B22"]
[WhiteElo "2410"]
[BlackElo "2519"]
[Annotator "ChessBase"]
[PlyCount "81"]
[EventDate "2019.09.09"]
[EventType "swiss"]
[EventCountry "RUS"]
[SourceTitle "playchess.com"]
[Source "ChessBase"]
[SourceQuality "1"]
[TimeControl "5400+30"]

1. e4 {[%emt 0:00:00]} c5 {[%emt 0:03:26]} 2. c3 {[%emt 0:00:00]} d6 {[%emt 0:04:37]} 3. d4 {[%emt 0:00:00]} Qc7 {[%emt 0:00:02]} 4. Nf3 {[%emt 0:00:37]} Nd7 {[%emt 0:01:12]} 5. Bd3 {[%emt 0:01:35]} g6 {[%emt 0:00:15]} 6. O-O {[%emt 0:00:36]} Bg7 {[%emt 0:00:06]} 7. a4 {[%emt 0:00:10]} Ngf6 {[%emt 0:00:31]} 8. Na3 {[%emt 0:00:26]} O-O {[%emt 0:00:25]} 9. Re1 {[%emt 0:00:36]} a6 {[%emt 0:03:05]} 10. d5 {[%emt 0:07:48]} b6 {[%emt 0:01:23]} 11. Rb1 {[%emt 0:00:38]} Re8 {[%emt 0:01:31]} 12. Bf1 {[%emt 0:01:08]} Bb7 {[%emt 0:00:30]} 13. Nc4 {[%emt 0:04:44]} Rad8 {[%emt 0:04:26]} 14. h3 {[%emt 0:05:10]} h6 {[%emt 0:05:08]} 15. Bf4 {[%emt 0:05:30]} Bf8 {[%emt 0:00:51]} 16. b4 {[%emt 0:03:47]} e6 {[%emt 0:02:37]} 17. e5 {[%emt 0:25:38]} dxe5 {[%emt 0:04:50]} 18. d6 {[%emt 0:03:27]} Qc8 {[%emt 0:00:04]} 19. Nfxe5 {[%emt 0:00:59]} Nd5 {[%emt 0:00:09]} 20. Qd2 {[%emt 0:00:55]} b5 {[%emt 0:02:49]} 21. axb5 {[%emt 0:01:19]} axb5 {[%emt 0:00:05]} 22. Nxd7 {[%emt 0:02:15]} Rxd7 {[%emt 0:04:29]} 23. Ne5 {[%emt 0:00:50]} Rxd6 {[%emt 0:00:53]} 24. bxc5 {[%emt 0:04:20]} Rdd8 {[%emt 0:12:37]} 25. Bxh6 {[%emt 0:03:27]} Bxc5 {[%emt 0:10:11]} 26. Qg5 {[%emt 0:03:03]} Be7 {[%emt 0:10:56]} 27. Qg4 {[%emt 0:02:26]} Nf6 {[%emt 0:00:15]} 28. Qf4 {[%emt 0:01:23]} Ba6 {[%emt 0:07:10]} 29. g4 {[%emt 0:02:22]} Qxc3 {[%emt 0:12:29]} 30. Rec1 {[%emt 0:08:09]} Qd4 {[%emt 0:01:03]} 31. Qxd4 {[%emt 0:00:22]} Rxd4 {[%emt 0:00:01]} 32. Nc6 {[%emt 0:00:02]} Ra4 {[%emt 0:00:38]} 33. Nxe7+ {[%emt 0:01:02]} Rxe7 {[%emt 0:00:01]} 34. Bg5 {[%emt 0:01:22]} Kg7 {[%emt 0:00:07]} 35. Bxf6+ {[%emt 0:00:17]} Kxf6 {[%emt 0:00:15]} 36. Bxb5 {[%emt 0:00:05]} Bxb5 {[%emt 0:00:06]} 37. Rxb5 {[%emt 0:00:03]} Rea7 {[%emt 0:00:22]} 38. Kg2 {[%emt 0:00:08]} R4a5 {[%emt 0:00:07]} 39. g5+ {[%emt 0:00:34]} Kg7 {[%emt 0:00:05]} 40. Rxa5 {[%emt 0:00:11]} Rxa5 {[%emt 0:00:04]} 41. h4 {[%emt 0:00:01]} 1/2-1/2

[Event "Panchenko Memorial 2019"]
[Site "Chelyabinsk"]
[Date "2019.09.13"]
[Round "5.7"]
[White "Lobanov, Sergei"]
[Black "Sitnikov, Anton"]
[Result "1-0"]
[ECO "C41"]
[WhiteElo "2515"]
[BlackElo "2405"]
[Annotator "ChessBase"]
[PlyCount "119"]
[EventDate "2019.09.09"]
[EventType "swiss"]
[EventCountry "RUS"]
[SourceTitle "playchess.com"]
[Source "ChessBase"]
[SourceQuality "1"]
[TimeControl "5400+30"]

1. e4 {[%emt 0:03:39]} d6 {[%emt 0:00:00]} 2. d4 {[%emt 0:00:07]} Nf6 {[%emt 0:00:07]} 3. Nc3 {[%emt 0:00:05]} e5 {[%emt 0:00:12]} 4. Nf3 {[%emt 0:00:58]} Nbd7 {[%emt 0:00:09]} 5. Bc4 {[%emt 0:00:09]} Be7 {[%emt 0:00:06]} 6. O-O {[%emt 0:00:06]} O-O {[%emt 0:00:10]} 7. h3 {[%emt 0:00:27]} c6 {[%emt 0:00:13]} 8. a4 {[%emt 0:00:04]} h6 {[%emt 0:00:57]} 9. Re1 {[%emt 0:00:10]} exd4 {[%emt 0:00:40]} 10. Nxd4 {[%emt 0:00:46]} Ne5 {[%emt 0:00:15]} 11. Ba2 {[%emt 0:02:34]} Re8 {[%emt 0:00:29]} 12. a5 {[%emt 0:01:24]} Qc7 {[%emt 0:02:18]} 13. Be3 {[%emt 0:00:43]} Bf8 {[%emt 0:01:15]} 14. f4 {[%emt 0:03:18]} Ng6 {[%emt 0:12:50]} 15. Qf3 {[%emt 0:00:35]} Kh7 {[%emt 0:20:04]} 16. Bf2 {[%emt 0:06:46]} Rb8 {[%emt 0:27:37]} 17. Kh1 {[%emt 0:00:25]} b5 {[%emt 0:05:45]} 18. axb6 {[%emt 0:35:13]} axb6 {[%emt 0:18:35]} 19. e5 {[%emt 0:00:46]} dxe5 {[%emt 0:00:14]} 20. Qxc6 {[%emt 0:00:03]} Qe7 {[%emt 0:02:15]} 21. fxe5 {[%emt 0:01:55]} Nxe5 {[%emt 0:00:27]} 22. Qb5 {[%emt 0:00:18]} Bd7 {[%emt 0:05:27]} 23. Qf1 {[%emt 0:00:48]} Qb4 {[%emt 0:00:31]} 24. Bb3 {[%emt 0:00:22]} Bd6 {[%emt 0:00:51]} 25. Na2 {[%emt 0:02:00]} Qa5 {[%emt 0:00:07]} 26. c3 {[%emt 0:01:42]} b5 {[%emt 0:00:12]} 27. Nb4 {[%emt 0:00:03]} Qd8 {[%emt 0:00:30]} 28. Bg3 {[%emt 0:00:17]} Rb6 {[%emt 0:00:28]} 29. Rad1 {[%emt 0:03:47]} Nh5 {[%emt 0:01:08]} 30. Bh2 {[%emt 0:00:22]} Qh4 {[%emt 0:00:33]} 31. Nf5 {[%emt 0:10:07]} Bxf5 {[%emt 0:00:09]} 32. Rxd6 {[%emt 0:00:41]} Rxd6 {[%emt 0:00:48]} 33. Rxe5 {[%emt 0:00:00]} Rf6 {[%emt 0:00:34]} 34. Rxe8 {[%emt 0:01:16]} Bxh3 {[%emt 0:00:10]} 35. Qe1 {[%emt 0:03:37]} Bxg2+ {[%emt 0:00:08]} 36. Kxg2 {[%emt 0:00:59]} Rg6+ {[%emt 0:00:15]} 37. Kf3 {[%emt 0:02:17]} Qxh2 {[%emt 0:00:19]} 38. Ke3 {[%emt 0:00:54]} Rg1 {[%emt 0:01:14]} 39. Qe2 {[%emt 0:00:24]} Qf4+ {[%emt 0:00:47]} 40. Kd3 {[%emt 0:00:01]} Nf6 {[%emt 0:00:38]} 41. Nd5 {[%emt 0:02:06]} Rg3+ {[%emt 0:00:30]} 42. Re3 {[%emt 0:01:04]} Qf5+ {[%emt 0:00:26]} 43. Kd2 {[%emt 0:02:16]} Rxe3 {[%emt 0:00:08]} 44. Nxe3 {[%emt 0:00:03]} Qg5 {[%emt 0:00:39]} 45. Bxf7 {[%emt 0:00:34]} h5 {[%emt 0:00:19]} 46. Qf3 {[%emt 0:00:57]} g6 {[%emt 0:00:50]} 47. Bb3 {[%emt 0:00:17]} h4 {[%emt 0:00:10]} 48. Be6 {[%emt 0:00:20]} Qe5 {[%emt 0:00:26]} 49. Bc8 {[%emt 0:01:33]} b4 {[%emt 0:00:59]} 50. Qb7+ {[%emt 0:00:17]} Kh6 {[%emt 0:00:22]} 51. Qxb4 {[%emt 0:00:07]} Ne4+ {[%emt 0:00:41]} 52. Kd3 {[%emt 0:01:05]} Nc5+ {[%emt 0:00:31]} 53. Kc4 {[%emt 0:00:51]} Qf4+ {[%emt 0:00:27]} 54. Kxc5 {[%emt 0:00:13]} Qxe3+ {[%emt 0:00:04]} 55. Qd4 {[%emt 0:00:17]} Qg5+ {[%emt 0:00:40]} 56. Kb6 {[%emt 0:00:37]} Qg3 {[%emt 0:00:09]} 57. b4 {[%emt 0:00:49]} Kg5 {[%emt 0:00:06]} 58. c4 {[%emt 0:00:45]} h3 {[%emt 0:00:18]} 59. Qd8+ {[%emt 0:00:15]} Kf4 {[%emt 0:00:18]} 60. Qd6+ 1-0

[Event "Panchenko Memorial 2019"]
[Site "Chelyabinsk"]
[Date "2019.09.13"]
[Round "5.8"]
[White "Remizov, Yaroslav"]
[Black "Drygalov, Andrey"]
[Result "1-0"]
[ECO "B90"]
[WhiteElo "2354"]
[BlackElo "2499"]
[Annotator "ChessBase"]
[PlyCount "93"]
[EventDate "2019.09.09"]
[EventType "swiss"]
[EventCountry "RUS"]
[SourceTitle "playchess.com"]
[Source "ChessBase"]
[SourceQuality "1"]
[TimeControl "5400+30"]

1. e4 {[%emt 0:00:00]} c5 {[%emt 0:00:00]} 2. Nf3 {[%emt 0:00:00]} d6 {[%emt 0:00:00]} 3. d4 {[%emt 0:00:00]} cxd4 {[%emt 0:00:00]} 4. Nxd4 {[%emt 0:00:01]} Nf6 {[%emt 0:00:00]} 5. Nc3 {[%emt 0:00:18]} a6 {[%emt 0:00:00]} 6. Be3 {[%emt 0:00:28]} e5 {[%emt 0:00:00]} 7. Nb3 {[%emt 0:00:12]} Be6 {[%emt 0:00:01]} 8. h3 {[%emt 0:01:19]} Be7 {[%emt 0:00:47]} 9. f4 {[%emt 0:01:05]} exf4 {[%emt 0:02:21]} 10. Bxf4 {[%emt 0:01:23]} Nc6 {[%emt 0:01:11]} 11. Qe2 {[%emt 0:01:09]} Ne5 {[%emt 0:08:06]} 12. O-O-O {[%emt 0:03:29]} Nfd7 {[%emt 0:01:25]} 13. Nd4 {[%emt 0:02:58]} g6 {[%emt 0:01:57]} 14. Qe3 {[%emt 0:35:20]} O-O {[%emt 0:03:51]} 15. h4 {[%emt 0:10:58]} Bxh4 {[%emt 0:42:11]} 16. Kb1 {[%emt 0:22:36]} h5 {[%emt 0:11:59]} 17. Be2 {[%emt 0:07:21]} Bf6 {[%emt 0:07:00]} 18. Nxe6 {[%emt 0:04:20]} fxe6 {[%emt 0:00:17]} 19. Rxd6 {[%emt 0:00:33]} Qe7 {[%emt 0:00:23]} 20. Rhd1 {[%emt 0:00:13]} Rf7 {[%emt 0:02:24]} 21. Qg3 {[%emt 0:03:24]} h4 {[%emt 0:02:12]} 22. Qh3 {[%emt 0:03:15]} Re8 {[%emt 0:00:59]} 23. g3 {[%emt 0:00:25]} Rh7 {[%emt 0:04:35]} 24. gxh4 {[%emt 0:00:36]} Rxh4 {[%emt 0:00:47]} 25. Qg3 {[%emt 0:00:18]} Qh7 {[%emt 0:01:18]} 26. Bc4 {[%emt 0:00:32]} Qf7 {[%emt 0:03:53]} 27. Bb3 Kg7 {[%emt 0:01:25]} 28. Be3 {[%emt 0:01:14]} Rg4 {[%emt 0:03:02]} 29. Qh3 {[%emt 0:00:31]} Rh4 {[%emt 0:00:33]} 30. Qg3 {[%emt 0:00:17]} Rg4 {[%emt 0:00:29]} 31. Qh3 {[%emt 0:00:18]} Rh4 {[%emt 0:01:10]} 32. Qg3 {[%emt 0:00:51]} Nf8 {[%emt 0:00:08]} 33. Bd4 {[%emt 0:00:24]} Rh5 {[%emt 0:00:04]} 34. Rf1 {[%emt 0:00:37]} Qe7 {[%emt 0:01:47]} 35. Rb6 {[%emt 0:00:27]} Ned7 {[%emt 0:00:34]} 36. Bxf6+ {[%emt 0:00:35]} Nxf6 {[%emt 0:00:04]} 37. Qf4 {[%emt 0:00:24]} Rd8 {[%emt 0:00:41]} 38. Rxb7 {[%emt 0:00:19]} N8d7 {[%emt 0:00:47]} 39. a4 {[%emt 0:00:35]} Kg8 {[%emt 0:00:34]} 40. Qg3 {[%emt 0:00:40]} Qf7 {[%emt 0:00:26]} 41. Qd6 {[%emt 0:00:20]} Re5 {[%emt 0:00:20]} 42. Rxd7 {[%emt 0:00:10]} Nxd7 {[%emt 0:00:22]} 43. Rxf7 {[%emt 0:00:05]} Kxf7 {[%emt 0:00:02]} 44. Ne2 {[%emt 0:00:11]} Rxe4 {[%emt 0:01:23]} 45. Nf4 {[%emt 0:00:53]} Rxf4 {[%emt 0:00:16]} 46. Bxe6+ {[%emt 0:00:26]} Kg7 {[%emt 0:00:14]} 47. Qxf4 {[%emt 0:00:09]} 1-0